Cogmind - Beta 14 @@@ ROGUE MODE // 2024.08.14 @ 13:52:38 // AFD2019/Pay2Buy Player: Minty Result: Destroyed by B-75 Beast with Heavy Plasma Cannon Performance ------------- Evolutions (5) 2500 Regions Visited (11) 2200 Robots Destroyed (146) 730 Value Destroyed (6532) 6532 Prototype IDs (11) 220 Alien Tech Used (0) 0 Bonus (3313) 3313 TOTAL SCORE: 15495 Bonus ------- High Alert Combat Kills 2221 Follower Combat Kills 367 Entered Garrisons 200 Used RIF Installer 500 Aligned with FarCom 300 Friendly Fire -275 Cogmind --------- Core Integrity 0/1000 Matter 5/300 Energy 38/100 System Corruption 3% Temperature Cool (12) Movement Core (200) Ox3 Location -5/Upper Caves Parts ------- > --- POWER (2) -------- (None) > --- PROPULSION (5) --- (None) > --- UTILITY (7) ------ Improved Utility Shielding Hacking Suite Relay Coupler [NC] (3) Relay Coupler [Behemoth] (10) > --- WEAPON (3) ------- Enhanced Force Lance > --- INVENTORY (10) --- Improved Shock Absorption System Recalibrator Peak State ------------ > --- POWER ------------ Light Fission Core > --- PROPULSION ------- Cooled Airjet Cooled Airjet Cooled Aerolev Unit Cooled Aerolev Unit > --- UTILITY ---------- Improved Propulsion Shielding Improved Utility Shielding Hacking Suite Makeshift Hacking Suite Relay Coupler [NC] Relay Coupler [Grunt] Relay Coupler [Sentry] > --- WEAPON ----------- Remote Datajack Greatsword > --- INVENTORY -------- Improved Shock Absorption System Relay Coupler [Grunt] Relay Coupler [Grunt] Relay Coupler [Heavy] Relay Coupler [Behemoth] Recalibrator Improved Heavy Machine Gun Hypervelocity Gauss Cannon Proton Missile Launcher Shock Maul [Rating: 65] Favorites ----------- Power Micro Nuclear Core Engine Light Deuterium Engine Power Core Micro Nuclear Core Reactor Heavy Antimatter Reactor Propulsion Spiked Treads Treads Spiked Treads Leg Improved Aluminum Leg Wheel Compact Wheel Hover Unit Improved Airjet Utility Hardened Light Armor Plating Device Advanced Cooling System Hackware Hacking Suite Protection Hardened Light Armor Plating Weapon Improved Light Cannon Energy Gun Heavy EM Shotgun Ballistic Gun Improved Heavy Machine Gun Ballistic Cannon Improved Light Cannon Launcher Tesla Bomb Launcher Special Weapon Remote Datajack Impact Weapon Shock Maul Slashing Weapon Greatsword Piercing Weapon Enhanced Force Lance Build | -11 -10 -10 -10 -9 -8 -7 -7 -7 -6 -5 -5 ------- Run | Yrd Mat Min Exi Min Mat Fac Gar Fac Fac Fac Upp Slots Evolved 10 | . . . . . 4 2 . . 2 2 . Power 1 | . . . . . . . . . . 1 . Propulsion 3 | . . . . . 1 1 . . . 1 . Utility 5 | . . . . . 3 1 . . 1 . . Weapon 1 | . . . . . . . . . 1 . . Parts Attached 78 | . . . . . 5 9 19 12 23 4 6 Power 1 | . . . . . . 1 . . . . . Engine . | . . . . . . . . . . . . Core 1 | . . . . . . 1 . . . . . Reactor . | . . . . . . . . . . . . Propulsion 5 | . . . . . 1 1 . 2 . 1 . Treads 1 | . . . . . 1 . . . . . . Leg 1 | . . . . . . 1 . . . . . Wheel 1 | . . . . . . . . . . 1 . Hover 2 | . . . . . . . . 2 . . . Flight . | . . . . . . . . . . . . Utility 12 | . . . . . . . 3 4 4 . 1 Device 2 | . . . . . . . 2 . . . . Storage . | . . . . . . . . . . . . Processor . | . . . . . . . . . . . . Hackware 10 | . . . . . . . 1 4 4 . 1 Protection . | . . . . . . . . . . . . Artifact . | . . . . . . . . . . . . Weapon 60 | . . . . . 4 7 16 6 19 3 5 Energy Gun 5 | . . . . . . . 4 1 . . . Energy Cannon . | . . . . . . . . . . . . Ballistic Gun 11 | . . . . . . 3 3 . 4 1 . Ballistic Cannon 11 | . . . . . 3 1 . . 6 . 1 Launcher 15 | . . . . . 1 2 5 1 5 . 1 Special Weapon 8 | . . . . . . . 1 2 3 1 1 Impact Weapon 5 | . . . . . . 1 3 . 1 . . Slashing Weapon 2 | . . . . . . . . 2 . . . Piercing Weapon 3 | . . . . . . . . . . 1 2 Special Melee Weapon . | . . . . . . . . . . . . Unidentified Prototypes . | . . . . . . . . . . . . Parts Lost 46 | . . . . . . 4 7 9 14 7 5 Power 8 | . . . . . . . 3 1 2 2 . Propulsion 12 | . . . . . . 2 1 3 5 1 . Utility 13 | . . . . . . 2 3 3 2 2 1 Weapon 13 | . . . . . . . . 2 5 2 4 Highest Loss Streak 7 | . . . . . . 1 5 3 4 7 4 To Critical Strikes . | . . . . . . . . . . . . Average Slot Usage (%) 62 | . 85 85 64 57 58 46 53 58 67 31 29 Core 1 | . . . . . . . 2 5 4 . . Treads 12 | . 28 28 28 28 23 17 . . . . . Hover 7 | . . . . . . . 20 18 15 . . Hackware 8 | . . . . . . 2 3 17 28 17 13 Protection 13 | . 28 28 28 28 18 7 3 3 8 5 8 Ballistic Gun 2 | . . . . . . 8 7 . . . . Ballistic Cannon 9 | . 28 28 7 . 16 3 . . 2 . . Impact Weapon 1 | . . . . . . 2 2 4 . . . Peak Build Rating 65 | . 12 14 14 10 16 38 54 50 65 36 37 Average Rating 27 | . 11 13 11 10 14 22 40 39 48 21 24 On Entrance 19 | . . 12 14 10 10 16 34 54 42 32 10 Naked Turns 4 | . 4 . . . . . . . . . . Heaviest Build 29 | . 18 18 18 10 18 18 20 16 27 29 18 Greatest Support 62 | 3 40 40 40 40 62 62 39 39 34 16 3 Greatest Overweight (x) 5 | . . . . . . . . . 5 3 5 Average Overweight (x) . | . . . . . . . . . . . 1 Largest Inventory Capacity 10 | . 10 10 10 10 10 10 10 10 10 10 10 Average Capacity 10 | . 10 10 10 10 10 10 10 10 10 10 10 Most Carried 10 | . . 10 10 10 10 10 10 10 10 6 7 Average Carried 7 | . . 6 9 10 7 9 9 9 7 5 5 Final Capacity 10 | 10 10 10 10 10 10 10 10 10 10 10 10 Final Carried 10 | . . 10 10 10 7 9 10 10 6 6 2 Class Distribution -------------------- 67% | Mutant 22% | Bothacker-Mutant 10% | Hacker-Mutant Dominant Class ---------------- Mutant | -10/Materials Mutant | -10/Mines Mutant | -10/Exiles Mutant | -9/Mines Mutant | -8/Materials Mutant | -7/Factory Mutant | -7/Garrison Bothacker-Mutant | -7/Factory Bothacker-Mutant | -6/Factory Hacker-Mutant | -5/Factory Mutant | -5/Upper Caves Resources | -11 -10 -10 -10 -9 -8 -7 -7 -7 -6 -5 -5 ----------- Run | Yrd Mat Min Exi Min Mat Fac Gar Fac Fac Fac Upp Matter Collected 3016 | . 53 278 . . 281 545 636 202 824 108 89 Remotely . | . . . . . . . . . . . . Salvage Created 4918 | . 61 95 . . 349 576 1197 516 1695 328 101 Parts . | . . . . . . . . . . . . Haulers Intercepted 2 | . . . . . . . . 2 . . . Recyclers Shooed . | . . . . . . . . . . . . Parts Field Recycled . | . . . . . . . . . . . . Retrieved Matter . | . . . . . . . . . . . . Parts Self-Destructed . | . . . . . . . . . . . . Prevented . | . . . . . . . . . . . . Kills | -11 -10 -10 -10 -9 -8 -7 -7 -7 -6 -5 -5 ------- Run | Yrd Mat Min Exi Min Mat Fac Gar Fac Fac Fac Upp Combat Hostiles Destroyed 107 | . 6 2 . . 11 13 32 10 24 5 4 Melee 19 | . . . . . . 2 5 4 7 1 . Guns 14 | . . . . . . 5 7 1 . 1 . Cannons 24 | . 5 2 . . 8 1 . . 7 1 . AOE 33 | . 1 . . . 3 3 12 3 6 2 3 Classes Destroyed 18 | . 2 3 . . 4 4 2 1 1 1 . Worker 11 | . . . . . . 1 . 2 5 3 . Builder 9 | . . . . . 1 2 . . 5 1 . Tunneler 2 | . . . . . . . . . 1 1 . Hauler 2 | . . . . . . . . 2 . . . Recycler 3 | . . 1 . . . 2 . . . . . Mechanic 5 | . . 1 . . 2 1 . . 1 . . Operator 1 | . . . . . . 1 . . . . . Watcher 4 | . 2 . . . . 1 . . 1 . . Swarmer 20 | . 6 . . . . 3 6 3 . . 2 Cutter 5 | . . . . . . . 5 . . . . Grunt 52 | . . 2 . . 7 4 11 3 23 2 . Brawler 3 | . . . . . 1 . . . 2 . . Duelist 2 | . . . . . 1 . 1 . . . . Sentry 9 | . . . . . . 1 4 3 . . 1 Specialist 4 | . . . . . . . 3 . . 1 . Hunter 5 | . . . . . 2 . 1 . . 1 1 Programmer 8 | . . . . . . 5 1 1 1 . . Heavy 1 | . . . . . . . . . . 1 . Best Kill Streak 9 | . 3 2 . . 5 5 6 2 8 6 9 Combat Bots Only 6 | . 3 1 . . 3 3 6 2 4 3 5 Max Kills in Single Turn 4 | . 2 1 . . 2 2 2 1 3 4 2 Gunslinging . | . . . . . . . . . . . . Exploded 2 | . 1 . . . 1 1 2 1 2 1 2 Melee 1 | . . . . . . 1 1 1 1 1 . Uniques/NPCs Destroyed . | . . . . . . . . . . . . Combat | -11 -10 -10 -10 -9 -8 -7 -7 -7 -6 -5 -5 -------- Run | Yrd Mat Min Exi Min Mat Fac Gar Fac Fac Fac Upp Hostile Shots Fired 793 | . 19 4 . . 30 87 220 154 144 41 94 Missed 302 | . 8 1 . . 11 30 95 62 37 20 38 Damage Taken 8230 | . 173 41 . . 386 860 1638 958 2108 913 1153 Core 2478 | . 10 . . . 51 120 277 257 742 442 579 Absorbed by Shields 18 | . . . . . . . 18 . . . . Redirected to Shielding 651 | . . . . . . . 190 85 169 48 159 Core Remaining (%) 60 | 100 . . . 96 90 . . 6 12 . . Volleys Fired 333 | . 17 6 . . 34 65 53 16 104 10 28 Largest 2 | . 2 2 . . 2 2 2 1 2 2 2 Hottest 145 | . 78 78 . . 78 78 89 50 122 80 145 Shots Fired 484 | . 30 13 . . 68 106 90 16 112 14 35 Gun 158 | . . . . . . 55 72 2 6 4 19 Cannon 242 | . 30 13 . . 61 48 . . 75 7 8 Launcher 47 | . . . . . 7 3 17 3 9 1 7 Special 37 | . . . . . . . 1 11 22 2 1 Kinetic 372 | . 30 13 . . 61 103 65 . 81 11 8 Thermal 19 | . . . . . . . . . . . 19 Explosive 26 | . . . . . 7 3 9 . . . 7 Electromagnetic 30 | . . . . . . . 15 5 9 1 . Robot Hit Streak 16 | . 2 5 . . 6 9 6 4 8 4 16 Robot Miss Streak 6 | . 6 1 . . 3 4 4 4 2 1 3 Penetration Max 1 | . . . . . . . . . 1 . . Secondary Targets 1 | . . . . . . . 1 . . . . Max Gunslinging Chain 1 | . . . . . . . 1 . . . . Shots Hit Robots 347 | . 6 9 . . 37 67 68 33 84 14 29 Core Hits 222 | . 7 6 . . 30 23 38 11 80 14 13 Critical Kills 14 | . . . . . . . 3 1 10 . . Critical Parts Destroyed 38 | . . . . . . 4 10 1 21 . 2 Critical Strikes 55 | . 1 . . . . 4 13 3 31 . 3 Destroy 31 | . . . . . . . . . 29 . 2 Blast 1 | . 1 . . . . . . . . . . Smash 22 | . . . . . . 4 13 3 2 . . Impale 1 | . . . . . . . . . . . 1 Melee Attacks 134 | . . . . . . 17 25 52 34 5 1 Impact 92 | . . . . . . 17 25 31 19 . . Slashing 36 | . . . . . . . . 21 15 . . Piercing 6 | . . . . . . . . . . 5 1 Sneak Attacks 15 | . . . . . . 3 1 6 5 . . Combat Hostiles 8 | . . . . . . 1 1 2 4 . . Follow-up Attacks . | . . . . . . . . . . . . Damage Inflicted 17142 | . 194 229 . . 1360 2630 3073 2311 5000 1083 1262 Guns 2198 | . . . . . . 847 858 10 . 42 441 Cannons 2902 | . 161 181 . . 745 523 . . 783 251 258 Explosions 6976 | . . . . . 586 563 1032 706 2901 660 528 Melee 4919 | . . . . . . 685 1183 1585 1316 115 35 Ramming 147 | . 33 48 . . 29 12 . 10 . 15 . Kinetic 4580 | . 161 181 . . 745 1370 789 . 783 293 258 Thermal 2082 | . . . . . . 401 . 676 483 81 441 Explosive 2835 | . . . . . 586 162 707 . 284 568 528 Electromagnetic 2579 | . . . . . . . 394 40 2134 11 . Impact 3193 | . . . . . . 685 1183 861 464 . . Slashing 1576 | . . . . . . . . 724 852 . . Piercing 150 | . . . . . . . . . . 115 35 Highest Corruption 8 | . 1 1 1 1 . 3 5 8 1 3 3 Average Corruption 3 | . 1 1 1 1 . 2 4 7 1 3 3 Corruption Purged . | . . . . . . . . . . . . Corruption Blocked . | . . . . . . . . . . . . Effects 90 | . . 16 3 1 . 17 18 25 6 1 3 Message Errors 28 | . . 3 3 . . 6 7 9 . . . Matter Fused 19 | . . 2 . . . . 4 8 3 1 1 Heat Flow Errors 14 | . . 6 . . . 5 1 2 . . . Energy Discharges 7 | . . 2 . . . 2 2 . . . 1 Parts Fused 2 | . . . . . . . . 1 1 . . Data Loss (minor) 8 | . . 1 . 1 . 1 1 4 . . . Data Loss (major) 3 | . . 1 . . . . . 1 1 . . Misfires 4 | . . 1 . . . 1 2 . . . . Alerts 2 | . . . . . . 1 1 . . . . Weapon Failures 3 | . . . . . . 1 . . 1 . 1 Overload Shots . | . . . . . . . . . . . . Overflow Damage 1954 | . . . . . 3 392 616 394 347 69 133 Projectiles 45 | . . . . . 3 24 . . 18 . . Explosions 620 | . . . . . . 29 . 208 224 69 90 Melee 1289 | . . . . . . 339 616 186 105 . 43 Knockbacks 26 | . . 1 . . 11 6 1 1 5 1 . Impact 4 | . . . . . . 2 1 1 . . . Kinetic 21 | . . 1 . . 10 4 . . 5 1 . Secondary 1 | . . . . . 1 . . . . . . Self-Inflicted Damage 305 | . 14 . . . 61 . 88 10 32 100 . Shots 10 | . 1 . . . 3 . 2 . 2 2 . Rammed 27 | . 6 10 . . 6 3 . . . 2 . Targets Rammed 31 | . 7 12 . . 6 4 . . . 2 . Kicked . | . . . . . . . . . . . . Crushed 4 | . 1 2 . . . 1 . . . . . Highest Temperature 223 | . 198 193 . . 129 223 142 179 161 9 216 Average Temperature 55 | . 56 73 . . 50 53 24 65 41 9 106 Received Heat Transfer 1941 | . . 24 . . 72 99 351 258 975 36 126 Siege Activations . | . . . . . . . . . . . . Robots Corrupted 18 | . . . . . . 4 8 3 3 . . Combat Hostiles 15 | . . . . . . 2 8 2 3 . . Parts Fried . | . . . . . . . . . . . . Impact Corruptions 34 | . . . . . . 10 16 6 2 . . Robots Melted 2 | . . . . . . . . . 1 . 1 Combat Hostiles 2 | . . . . . . . . . 1 . 1 Parts Melted 1 | . . . . . . . . . . . 1 Heat Transferred 1879 | . . . . . . 350 . 400 400 100 629 Parts Sabotaged . | . . . . . . . . . . . . Parts Stolen . | . . . . . . . . . . . . Parts Stripped . | . . . . . . . . . . . . Power Chain Reactions 1 | . . . . . . . . . . 1 . Alert | -11 -10 -10 -10 -9 -8 -7 -7 -7 -6 -5 -5 ------- Run | Yrd Mat Min Exi Min Mat Fac Gar Fac Fac Fac Upp Peak Influence 2004 | . 340 185 . . 400 398 1265 1336 2004 1336 . Initial 965 | . . 132 . . . 91 278 663 604 965 . Average 604 | . 157 95 . . 158 157 755 1029 1548 1110 . Maximum Alert Level 5 | . 1 . . . 2 1 4 4 5 4 . Low Security (%) 41 | . 62 100 . 100 57 70 . . . . . Level 1 12 | . 37 . . . 39 29 12 . . . . Level 2 6 | . . . . . 3 . 25 6 10 . . Level 3 17 | . . . . . . . 40 57 7 57 . Level 4 13 | . . . . . . . 20 36 21 42 . Level 5 9 | . . . . . . . . . 60 . . High Security . | . . . . . . . . . . . . Max Security . | . . . . . . . . . . . . Squads Dispatched 34 | . 2 1 . . 2 6 . 6 13 4 . Investigation 11 | . 1 . . . . 2 . 3 3 2 . Extermination 5 | . . . . . . 3 . 1 1 . . Reinforcement 9 | . 1 . . . 1 1 . 2 2 2 . Assault 6 | . . 1 . . 1 . . . 4 . . Garrison 3 | . . . . . . . . . 3 . . Intercept . | . . . . . . . . . . . . Searches Triggered . | . . . . . . . . . . . . Construction Impeded 3 | . . . . . 1 . . . 2 . . Haulers Reinforced 1 | . . . . . . . . 1 . . . Active Scanning Responses . | . . . . . . . . . . . . Cargo Convoy Interrupts . | . . . . . . . . . . . . Stealth | -11 -10 -10 -10 -9 -8 -7 -7 -7 -6 -5 -5 --------- Run | Yrd Mat Min Exi Min Mat Fac Gar Fac Fac Fac Upp Distress Signals 8 | . . . . . 1 1 . . 4 2 . Communications Jammed . | . . . . . . . . . . . . Distress Signals . | . . . . . . . . . . . . Times Spotted 183 | . 10 8 . . 17 19 39 12 66 8 4 Peak Tracking Total 9 | . 4 5 . . 4 3 9 4 8 5 2 Tactical Retreats 21 | . . . . . . 1 7 1 10 2 . Traps | -11 -10 -10 -10 -9 -8 -7 -7 -7 -6 -5 -5 ------- Run | Yrd Mat Min Exi Min Mat Fac Gar Fac Fac Fac Upp Traps Triggered 9 | . 1 . . . . . 8 . . . . Indirectly . | . . . . . . . . . . . . Trap Hack Attempts . | . . . . . . . . . . . . Triggered . | . . . . . . . . . . . . Disarmed . | . . . . . . . . . . . . Reprogrammed . | . . . . . . . . . . . . Reused . | . . . . . . . . . . . . Traps Extracted . | . . . . . . . . . . . . Installed . | . . . . . . . . . . . . Triggered . | . . . . . . . . . . . . Objects Rigged 40 | . . . . . 2 6 . 4 15 13 . Exploded 13 | . . . . . . 1 . 2 8 2 . Machines | -11 -10 -10 -10 -9 -8 -7 -7 -7 -6 -5 -5 ---------- Run | Yrd Mat Min Exi Min Mat Fac Gar Fac Fac Fac Upp Machines Disabled 92 | . 7 . . . 2 8 2 30 37 6 . Max in Single Turn 5 | . 2 . . . 1 5 1 5 5 4 . Garrison Access 1 | . . . . . . . . . 1 . . Garrison Relay 2 | . . . . . . . 2 . . . . Machines Repaired . | . . . . . . . . . . . . Machines Dismantled . | . . . . . . . . . . . . Machines Sabotaged . | . . . . . . . . . . . . Overloaded Fab Kills . | . . . . . . . . . . . . Hacking | -11 -10 -10 -10 -9 -8 -7 -7 -7 -6 -5 -5 --------- Run | Yrd Mat Min Exi Min Mat Fac Gar Fac Fac Fac Upp Machines Accessed 21 | . 1 . 1 . 3 4 1 6 3 2 . Terminals 18 | . 1 . . . 3 3 1 5 3 2 . Fabricators . | . . . . . . . . . . . . Repair Stations . | . . . . . . . . . . . . Recycling Units . | . . . . . . . . . . . . Scanalyzers . | . . . . . . . . . . . . Garrison Access 2 | . . . . . . 1 . 1 . . . Total Hacks 57 | . 1 . 1 . 9 11 2 18 10 5 . Successful 27 | . 1 . 1 . 6 4 . 7 5 3 . Failed 30 | . . . . . 3 7 2 11 5 2 . Catastrophic 7 | . . . . . 1 2 . 1 3 . . Database Lockouts . | . . . . . . . . . . . . Manual 39 | . 1 . . . 8 8 . 14 4 4 . Terminals 52 | . 1 . . . 9 10 2 15 10 5 . Fabricators . | . . . . . . . . . . . . Repair Stations . | . . . . . . . . . . . . Recycling Units . | . . . . . . . . . . . . Scanalyzers . | . . . . . . . . . . . . Garrison Access 4 | . . . . . . 1 . 3 . . . Terminal Hacks 9 | . . . 1 . 2 1 . 1 3 1 . Record 1 | . . . 1 . . . . . . . . Robot Analysis 2 | . . . . . . . . . 1 1 . Branch Access Points 1 | . . . . . . . . . 1 . . Emergency Access Points 1 | . . . . . . . . 1 . . . Garrison Index 1 | . . . . . . 1 . . . . . Alert Level 1 | . . . . . 1 . . . . . . Unreport Threat 1 | . . . . . . . . . 1 . . Locate Traps 1 | . . . . . 1 . . . . . . Fabricator Hacks . | . . . . . . . . . . . . Repair Station Hacks . | . . . . . . . . . . . . Recycling Unit Hacks . | . . . . . . . . . . . . Scanalyzer . | . . . . . . . . . . . . Garrison Access Hacks 1 | . . . . . . 1 . . . . . Unlock Access 1 | . . . . . . 1 . . . . . Unauthorized Hacks 17 | . 1 . . . 4 2 . 6 2 2 . Terminals 15 | . 1 . . . 4 2 . 4 2 2 . Botnet 5 | . . . . . 2 1 . 2 . . . Detonate 6 | . . . . . 1 1 . 1 2 1 . Disrupt 1 | . . . . . 1 . . . . . . Sabotage 3 | . 1 . . . . . . 1 . 1 . Fabricators . | . . . . . . . . . . . . Repair Stations . | . . . . . . . . . . . . Recycling Units . | . . . . . . . . . . . . Scanalyzers . | . . . . . . . . . . . . Garrison Access 2 | . . . . . . . . 2 . . . Restock 1 | . . . . . . . . 1 . . . Reprogram 1 | . . . . . . . . 1 . . . Data Cores Recovered . | . . . . . . . . . . . . Used . | . . . . . . . . . . . . Hacking Detections 18 | . . . . . 3 4 1 6 3 1 . Full Trace Events 10 | . . . . . 1 2 1 2 3 1 . Feedback Events 1 | . . . . . . . 1 . . . . Hackware Fried 1 | . . . . . . . 1 . . . . Feedback Blocked . | . . . . . . . . . . . . Robot Schematics Acquired . | . . . . . . . . . . . . Robots Built . | . . . . . . . . . . . . Authchips . | . . . . . . . . . . . . Time . | . . . . . . . . . . . . Total Robot Build Rating . | . . . . . . . . . . . . Part Schematics Acquired . | . . . . . . . . . . . . Parts Built . | . . . . . . . . . . . . Authchips . | . . . . . . . . . . . . Time . | . . . . . . . . . . . . Total Part Build Rating . | . . . . . . . . . . . . Parts Repaired . | . . . . . . . . . . . . Time . | . . . . . . . . . . . . Parts Recycled . | . . . . . . . . . . . . Recycled Matter . | . . . . . . . . . . . . Retrieved Matter . | . . . . . . . . . . . . Retrieved Components . | . . . . . . . . . . . . Parts Scanalyzed . | . . . . . . . . . . . . Part Schematics Acquired . | . . . . . . . . . . . . Parts Damaged . | . . . . . . . . . . . . Bothacking | -11 -10 -10 -10 -9 -8 -7 -7 -7 -6 -5 -5 ------------ Run | Yrd Mat Min Exi Min Mat Fac Gar Fac Fac Fac Upp Used RIF Installer 1 | . . . . . . . 1 . . . . Robots Hacked 20 | . . . . . . . 1 5 12 1 1 Non-combat 7 | . . . . . . . . 3 3 1 . Combat 13 | . . . . . . . 1 2 9 . 1 Robot Hacks Applied 23 | . . . . . . . 1 5 15 1 1 parse_system 3 | . . . . . . . . . 2 . 1 generate_echo 1 | . . . . . . . . . 1 . . randomize_corridors 1 | . . . . . . . . . 1 . . map_earth 1 | . . . . . . . . 1 . . . find_fabricator 1 | . . . . . . . . 1 . . . map_route 1 | . . . . . . . . . 1 . . link_fov 1 | . . . . . . . . . . 1 . scatter_targeting 1 | . . . . . . . . . 1 . . spike_heat 1 | . . . . . . . . . 1 . . overload_power 1 | . . . . . . . . 1 . . . amplify_resonance 3 | . . . . . . . . 1 2 . . overwrite_iff 2 | . . . . . . . . . 2 . . formatsys_high 6 | . . . . . . . 1 1 4 . . Relay Couplers Released 13 | . . . . . . . 9 3 1 . . Machine Destruction 10 | . . . . . . . 9 . 1 . . Programmers 3 | . . . . . . . . 3 . . . Attached 10 | . . . . . . . 1 4 4 . 1 Fabnet Peak Effective % . | . . . . . . . . . . . . Robots Rewired . | . . . . . . . . . . . . Allies Hacked 1 | . . . . . . . . 1 . . . Hacks Repelled . | . . . . . . . . . . . . Allies | -11 -10 -10 -10 -9 -8 -7 -7 -7 -6 -5 -5 -------- Run | Yrd Mat Min Exi Min Mat Fac Gar Fac Fac Fac Upp Total Allies 11 | . . 3 . . . . 1 1 6 . . Largest Group 3 | . . 3 3 1 1 . 1 1 2 . . Highest-Rated Group 80 | . . 80 80 31 31 . 21 32 61 . . Highest-Rated Ally 32 | . . 31 31 31 31 . 21 32 32 . . Total Orders . | . . . . . . . . . . . . Ally Attacks 67 | . . 15 . . 10 . 1 . 41 . . Total Damage 1500 | . . 257 . . 214 . 28 . 1001 . . Kills 17 | . . 6 . . . . . . 11 . . Allies Corrupted . | . . . . . . . . . . . . Allies Melted . | . . . . . . . . . . . . Intel | -11 -10 -10 -10 -9 -8 -7 -7 -7 -6 -5 -5 ------- Run | Yrd Mat Min Exi Min Mat Fac Gar Fac Fac Fac Upp Robot Analysis Total 2 | . . . . . . . . . 1 1 . Derelict Logs Recovered . | . . . . . . . . . . . . Drone Launches . | . . . . . . . . . . . . Drone Recoveries . | . . . . . . . . . . . . Exploration | -11 -10 -10 -10 -9 -8 -7 -7 -7 -6 -5 -5 ------------- Run | Yrd Mat Min Exi Min Mat Fac Gar Fac Fac Fac Upp Turns Passed 6492 | . 386 1178 262 20 435 1162 819 919 919 230 162 Spaces Moved 4264 | 1 204 696 154 13 179 680 719 633 666 245 74 Core 235 | 1 6 . . . . . . . 1 153 74 Treads 1621 | . 198 696 154 13 179 381 . . . . . Legs 248 | . . . . . . 248 . . . . . Wheels 92 | . . . . . . . . . . 92 . Hover 2068 | . . . . . . 51 719 633 665 . . Flight . | . . . . . . . . . . . . Fastest Speed 38 | 50 50 160 160 160 155 46 45 46 38 50 50 Average Speed 96 | 50 156 160 160 160 157 135 46 47 47 74 111 Slowest Speed 300 | 50 160 160 160 160 160 160 50 51 300 200 300 Overloaded Moves 10 | . . . . . . . . . 10 . . Propulsion Burnouts . | . . . . . . . . . . . . Robots Hopped . | . . . . . . . . . . . . Cave-ins Triggered . | . . . . . . . . . . . . Exploration Rate (%) 33 | 2 41 98 55 8 29 30 65 21 19 10 21 Regions Visited 11 Branch Regions 4 Pre-discovered Areas 2 | . . 1 1 . . . . . . . . Known Exits Taken 1 | . . . . . . 1 . . . . . Unknown Exits Taken 9 | 1 1 1 1 1 1 . . 1 1 1 . Scrap Searched . | . . . . . . . . . . . . Spaces Dug 12 | . . . . . . 12 . . . . . Terrain Destroyed 474 | . 2 . . . 69 67 63 76 92 61 44 Melee 1 | . . . . . . 1 . . . . . Projectile 5 | . 2 . . . 1 . . . . 1 1 AOE 468 | . . . . . 68 66 63 76 92 60 43 Terrain Rammed 1 | . . . . . . . . 1 . . . Walls Destroyed . | . . . . . . . . . . . . Machines Disabled . | . . . . . . . . . . . . Actions | -11 -10 -10 -10 -9 -8 -7 -7 -7 -6 -5 -5 --------- Run | Yrd Mat Min Exi Min Mat Fac Gar Fac Fac Fac Upp Total 5911 | . 236 741 172 12 262 790 1070 1138 1102 272 116 Wait 948 | . 9 25 15 . 37 10 163 416 265 3 5 Move 4253 | . 203 695 153 12 178 679 718 632 665 244 74 Hop . | . . . . . . . . . . . . Pick Up 15 | . . 3 . . . . 8 3 1 . . Fast Attach 2 | . . . . . . . 1 1 . . . Attach 40 | . . . . . 3 3 3 7 14 4 6 Detach 25 | . . . 2 . 1 3 2 3 8 4 2 Swap 36 | . . . . . 2 6 15 4 9 . . Drop 15 | . . . 2 . 1 3 7 2 . . . Fire 333 | . 17 6 . . 34 65 53 16 104 10 28 Melee 134 | . . . . . . 17 25 52 34 5 1 Ram 3 | . . . . . . . . 1 . 2 . Kick . | . . . . . . . . . . . . Crush 29 | . 7 12 . . 6 4 . . . . . Escape Stasis 75 | . . . . . . . 75 . . . . Rewire 3 | . . . . . . . . 1 2 . . Trap . | . . . . . . . . . . . . Miscellaneous . | . . . . . . . . . . . . Route ------- -11/Scrapyard -10/Materials -10/Mines (discovered 3 exits: [*Mat x2] / *Exi) -10/Exiles -9/Mines -8/Materials -7/Factory (discovered 2 exits: [*Low] / Gar) -7/Garrison (discovered 4 exits: *Fac x4) -7/Factory -6/Factory (discovered 4 exits: *Fac x2 / Low x2) -5/Factory -5/Upper Caves History --------- Turn | Location | Event 1 | -11/Scrapyard | Discovered new exit (range 0) 1 | -11/Scrapyard | Entered Materials 145 | -10/Materials | Discovered new exit (range 7) 305 | -10/Materials | Build established: Mutant 387 | -10/Materials | Entered Mines 660 | -10/Mines | Received a Rocket Launcher from a helpful Derelict 754 | -10/Mines | A weapon hastily lodged in a ceiling crevice suddenly fell to the ground 850 | -10/Mines | Met a Derelict testing a Signal Generator 861 | -10/Mines | Found Signal Generator 959 | -10/Mines | Learned location of Storage (-7) 1097 | -10/Mines | Discovered new exit (range 8) 1264 | -10/Mines | Discovered new exit (range 15) 1533 | -10/Mines | Deemed a non-threat by the Exiles lab entrance 1535 | -10/Mines | Discovered new exit (range 5) 1565 | -10/Mines | Entered Exiles 1565 | -10/Exiles | Accompanied by 3 allies 1595 | -10/Exiles | Led the pair of lost Derelicts to a safe place 1605 | -10/Exiles | Met 8R-AWN 1633 | -10/Exiles | Met EX-HEX 1676 | -10/Exiles | Met EX-BIN 1695 | -10/Exiles | Aligned with FarCom system 1697 | -10/Exiles | Given EX-Vault access code 1740 | -10/Exiles | Met EX-DEC 1747 | -10/Exiles | Learned location of Zion (-6) 1796 | -10/Exiles | Discovered new exit (range 11) 1827 | -10/Exiles | Entered Mines 1827 | -9/Mines | Accompanied by 1 ally 1827 | -9/Mines | Discovered new exit (range 11) 1830 | -9/Mines | Met a Derelict bent on vengeance 1847 | -9/Mines | Entered Materials 1847 | -8/Materials | Accompanied by 1 ally 1847 | -8/Materials | Evolved 4 slots: Propulsion x1, Utility x3 2253 | -8/Materials | Discovered new exit (range 15) 2282 | -8/Materials | Entered Factory 2282 | -7/Factory | Evolved 2 slots: Propulsion x1, Utility x1 2453 | -7/Factory | Discovered new exit (range 5) 3441 | -7/Factory | Identified exit to Garrison 3444 | -7/Factory | Entered Garrison 3476 | -7/Garrison | Triggered checkpoint 3496 | -7/Garrison | Garrison Relay disabled 3538 | -7/Garrison | Triggered checkpoint 3635 | -7/Garrison | Discovered new exit (range 10) 3720 | -7/Garrison | Imp. Hacking Suite fried by hacking feedback 3729 | -7/Garrison | Discovered new exit (range 8) 3792 | -7/Garrison | Garrison Relay disabled 3800 | -7/Garrison | Lost 5 parts (1p1n3u) 4027 | -7/Garrison | Triggered checkpoint 4169 | -7/Garrison | Discovered new exit (range 10) 4177 | -7/Garrison | Installed Relay Interface Framework 4188 | -7/Garrison | Triggered checkpoint 4225 | -7/Garrison | Core integrity fell below 50% 4261 | -7/Garrison | Discovered new exit (range 6) 4263 | -7/Garrison | Entered Factory 4325 | -7/Factory | Lost 3 parts (2u1w) 4646 | -7/Factory | Build established: Bothacker-Mutant 4745 | -7/Factory | Lost 3 parts (3n) 4957 | -7/Factory | Core integrity fell below 20% 5024 | -7/Factory | Discovered new exit (range 16) 5182 | -7/Factory | Entered another Factory area 5182 | -6/Factory | Accompanied by 1 ally 5182 | -6/Factory | Evolved 2 slots: Utility x1, Weapon x1 5450 | -6/Factory | Found Tesla Bomb Launcher 5465 | -6/Factory | Garrison activated, responded to threat 5532 | -6/Factory | First assault squad dispatched 5547 | -6/Factory | Lost 3 parts (1p2n) 5670 | -6/Factory | Identified exit to Lower Caves 5674 | -6/Factory | Discovered new exit (range 125) 5769 | -6/Factory | Discovered new exit (range 6) 5808 | -6/Factory | Core integrity fell below 50% 5964 | -6/Factory | Build established: Hacker-Mutant 6075 | -6/Factory | Core integrity fell below 20% 6101 | -6/Factory | Entered another Factory area 6101 | -5/Factory | Evolved 2 slots: Power x1, Propulsion x1 6165 | -5/Factory | Lost 7 parts (1p2n1u3w) 6272 | -5/Factory | Lost 3 parts (1p1n1w) 6313 | -5/Factory | Discovered new exit (range 11) 6331 | -5/Factory | Entered Upper Caves 6333 | -5/Upper Caves | Attracted the attention of an 0b10 checkpoint 6335 | -5/Upper Caves | Core integrity fell below 50% 6417 | -5/Upper Caves | Spotted B-75 Beast 6464 | -5/Upper Caves | Core integrity fell below 20% 6493 | -5/Upper Caves | Destroyed by B-75 Beast with Heavy Plasma Cannon Last Messages --------------- [Congratulations on your very own Exp. Core Shielding!] 06428_ Jacked B-75 Beast... >>parse_system Reading system data... 06439_ Remote Datajack destroyed. 06439_ Knocked back. 06447_ B-75 Beast suffers critical hit (Destroy). 06447_ Destroyed Rnf. Deuterium Engine. 06456_ Knocked back. 06472_ Hardcell Cannon destroyed. 06475_ Force Rifle destroyed. 06478_ Destroyed Med. Reflective Plating. 06478_ Knocked back. 06478_ Micro-nuke Launcher destroyed. 06485_ Knocked back. 06488_ B-75 Beast suffers critical hit (Impale). 06488_ Destroyed Dynamic Insulation System. 06489_ Exp. Core Shielding destroyed. 06489_ Knocked back. 06491_ The unstable cave ceiling collapses. Map ----- +----------------------------------------------------+ | ?????????????????????????????????????????????????? | | ?????????????????????????????????????????????????? | | ?????????????????????????????????????????????????? | | ?????????????????????????????????????????????????? | | ?????????????????????????????????????????????????? | | ?????????????????????????????????????????????????? | | ?????????????????????????????????????????????????? | | ?????????????????????????????????????????????????? | | ?????????????????????????????????????????????????? | | ?????????????????????????????????????????? ?????? | | ?????????????????????????? ????????????# ??##?? | | ????????????????????? ### ????????????# ??# #? | | ?????????????????? ????????????# #?# # | | ?????????????????# ????????????# ?# | | ????????????????## ??????????### ??# | | ??????????????### ?????????## ??## | | ????????????? ????????## ?### | | ????????????? #???????? ## # | | ?????????????? #######?? # | | ???????????????? # #????? # | | ?????????????????# #???????### | | ?????????????????# #?????????## | | ?????????????????# # # ######????## | | ?????????????????# ;;% #????# | | ????????????????### BB ;######### | | ??????????# BB@ % | | ????????????# %%% | | ????????????# % ;;;;######## | | ???????????# ## ;####??????## | | ??????????? ####### #?????????# | | ???????????? #??????##????????? | | ???????????? ##????????????????? | | ???????????? ##????????????????? | | ?????????????# #??????????????????##### | | ?????????????## #???????????????????????? | | ??????????????# #????????????????????????? | | ??????????????# ## ?????????????????????????? | | ???????????????? ?# ?????????????????????????? | | ???????????????????? ?????????????????????????? | | ????????????????????? ??????????????????????????? | | ?????????????????????????????????????????????????? | | ?????????????????????????????????????????????????? | | ?????????????????????????????????????????????????? | | ?????????????????????????????????????????????????? | | ?????????????????????????????????????????????????? | | ?????????????????????????????????????????????????? | | ?????????????????????????????????????????????????? | | ?????????????????????????????????????????????????? | | ?????????????????????????????????????????????????? | | ?????????????????????????????????????????????????? | +----------------------------------------------------+ Best States ------------- Heat Dissipation 65 Energy Generation 25 Energy Capacity 340 Matter Stores 300 Matter Capacity 300 Sight Range 16 Terrain Scan Density 10 EM Shielding 2 Armor Coverage 300 Core Shielding 40 Propulsion Shielding 66 Utility Shielding 66 Evasion (%) 57 Recoil Reduction 3 Offensive Hacking 21 Relay Coupler Types 3 Relay Coupler Value 57 Item Schematics ----------------- None Robot Schematics ------------------ None Fabricated ------------ Nothing Alien Tech Used ----------------- None Achievements -------------- None Challenges ------------ None Cogshop Purchases (58) ------------------------ Imp. Light Cannon (769) Imp. Light Cannon (769) Spk. Treads (874) Spk. Treads (874) Hrd. Light Armor Plating (699) Hrd. Light Armor Plating (699) Adv. Treads (Loot Box) Aluminum Leg (Loot Box) Sensor Array (Loot Box) Imp. Aluminum Leg (Loot Box) Imp. Aluminum Leg (Loot Box) Dynamic Insulation System (Loot Box) Hvy. EM Shotgun (Loot Box) Mic. Nuclear Core (837) Shock Maul (1829) Remote Datajack (629) Imp. Heavy Machine Gun (873) Imp. Heavy Machine Gun (873) Imp. Hacking Suite (1403) Adv. Cooling System (Loot Box) Imp. Airjet (737) Imp. Airjet (737) Imp. Light Armor Plating (830) Imp. Propulsion Shielding (849) Imp. Gravmag System (1026) Lgt. Deuterium Engine (1242) Gravmag Array (1154) Proton Missile Launcher (881) Lgt. Deuterium Engine (1420) Imp. Propulsion Shielding (1172) Mic. Nuclear Core (743) Imp. Shock Absorption System (Loot Box) Remote Datajack (724) Recalibrator (748) Cld. Airjet (565) Cld. Airjet (565) Mak. Hacking Suite (671) Hacking Suite (636) Greatsword (1174) Imp. Utility Shielding (878) Imp. Propulsion Shielding (878) Hyp. Gauss Cannon (1127) Cld. Aerolev Unit (1511) Lgt. Fission Core (770) Cld. Aerolev Unit (1511) Tesla Bomb Launcher (3274) Imp. Propulsion Shielding (1122) Mic. Fission Core (932) Hyp. Gauss Cannon (1337) Cld. Gravmag System (1995) Com. Wheel (199) Mic. Fission Core (913) Hvy. Antimatter Reactor (956) Enh. Force Lance (Loot Box) Hardcell Cannon (Loot Box) Micro-nuke Launcher (1586) Force Rifle (Loot Box) Exp. Core Shielding (Loot Box) Game ------ Seed ImpactMasterMallet Manual? 0 Play Time 00:48:28 Cumulative 862.5 hours Start 2024.08.14 @ 13:05:53 End 2024.08.14 @ 13:52:38 Sessions 1 Manual Loads 0 Difficulty Rogue Special Mode AFD2019/Pay2Buy Game No. 1038 Rogue 759 Adventurer 124 Explorer 155 Win Type - Total 37 Types 28/0/7/1/0/0/0/1/0 Lore% 75 Gallery% 89 Achievement% 78 Wizard Run 0 Options --------- Layout 0 ASCII 0 Keyboard 1 Movement Numpad Keybinds 0 Fullscreen 2 Font 18/Smallcaps Map View 76x50 Zoom Use 0% Tactical HUD 1 Map Filters NONE Filters NONE Steam 1 RUN: c16e1106-17e1-4702-a223-041b700728bd